Workbook

Sheet Ark1
A1: Plassering | B1: Rad 1 - arkivbokser | C1: Rad 1 - arkivbokser | D1: Rad 1 - arkivbokser | E1: Rad 1 - permer | F1: Rad 1 - hefter | G1: Rad 1 - protokoller | H1: Rad 1 - kopipapiresker | I1: Rad 1 - kopipapiresker | J1: Rad 2 - arkivbokser | K1: Rad 2 - arkivbokser | L1: Rad 2 - permer | M1: Rad 2 - permer | N1: Rad 2 - hefter | O1: Rad 2 - protokoller | P1: Rad 2 - kopipapiresker | Q1: Rad 3 - arkivbokser | R1: Rad 3 - arkivbokser | S1: Rad 3 - permer | T1: Rad 3 - permer | U1: Rad 3 - permer | V1: Rad 3 - permer | W1: Rad 3 - permer | X1: Rad 3 - hefter | Y1: Rad 3 - protokoller | Z1: Rad 4 - arkivbokser | AA1: Rad 4 - arkivbokser | AB1: Rad 4 - arkivbokser | AC1: Rad 4 - arkivbokser | AD1: Rad 4 - permer | AE1: Rad 4 - hefter | AF1: Rad 4 - protokoller | AG1: Rad 4 - kopipapiresker | AH1: Rad 4 - kopipapiresker | AI1: Over hyllene | AJ1: Type arkiv | AK1: Antall bokser | AL1: Antall permer | AM1: Antall hefter | AN1: Antall protokoller | AO1: Kopipapiresker | AP1: Over hyllene | AQ1: Deponeres snarest | AR1: Deponeres 2024 | AS1: Deponeres 2028 | AT1: Deponeres 2029 | AU1: Deponeres 2047 | AV1: Deponeres ikke
A2: Reol 1 - venstre side | AI2: 14 kopipapiresker med journalkort rådmann | AJ2: Saksarkiv 1977-1991
A3: 1. hyllemeter | B3: Tomt | J3: Tomt | Q3: Tomt
A4: 2. hyllemeter | B4: Tomt | J4: Tomt | Q4: Tomt
A5: 3. hyllemeter | B5: Tomt | J5: Tomt | Q5: 8 | AJ5: Saksarkiv 1977-1991
A6: 4. hyllemeter | B6: Tomt | J6: Tomt | Q6: 8 | AJ6: Saksarkiv 1977-1991
A7: 5. hyllemeter | B7: Tomt | J7: Tomt | Q7: 8 | AJ7: Saksarkiv 1977-1991
A8: 6. hyllemeter | B8: Tomt | J8: Tomt | Q8: 7 | AJ8: Saksarkiv 1977-1991
A9: Sum | B9: 0 | E9: 0 | F9: 0 | J9: 0 | L9: 0 | N9: 0 | Q9: =SUM(Q5:Q8) -> 31 | S9: 0 | X9: 0 | Y9: 0 | AI9: 14 kopipapiresker med journalkort rådmann | AJ9: Saksarkiv 1977-1991 | AK9: =+B9+J9+Q9 -> 31 | AL9: =+E9+L9+S9 -> 0 | AM9: =+F9+N9+X9 -> 0 | AN9: 0 | AP9: 14
A10: Reol 1 - høyre side
A11: 1. hyllemeter | B11: 8 | J11: 8 | Q11: 8 | AJ11: Saksarkiv 1977-1991
A12: 2. hyllemeter | B12: 9 | J12: 8 | Q12: 8 | AJ12: Saksarkiv 1977-1991
A13: 3. hyllemeter | B13: 9 | J13: 8 | Q13: 8 | AJ13: Saksarkiv 1977-1991
A14: 4. hyllemeter | B14: 8 | J14: 8 | Q14: 8 | AJ14: Saksarkiv 1977-1991
A15: 5. hyllemeter | B15: 8 | J15: 8 | Q15: 9 | AJ15: Saksarkiv 1977-1991
A16: 6. hyllemeter | B16: 8 | J16: 8 | Q16: 8 | AJ16: Saksarkiv 1977-1991
A17: Sum | B17: =SUM(B11:B16) -> 50 | J17: =SUM(J11:J16) -> 48 | Q17: =SUM(Q11:Q16) -> 49 | AK17: =+B17+J17+Q17 -> 147 | AL17: =+E17+L17+S17 -> 0 | AM17: =+F17+N17+X17 -> 0 | AN17: 0 | AP17: 0
A18: Reol 2 - venstre side | AI18: 2 kopipapiresker med personkort styrer, råd og utvalg
A19: 1. hyllemeter | B19: 9 | E19: 2 | J19: 5 | Q19: 8 | AJ19: Saksarkiv 1977-1991
A20: 2. hyllemeter | B20: 8 | J20: Tomt | Q20: 8 | AJ20: Saksarkiv 1977-1991
A21: 3. hyllemeter | B21: 8 | J21: Tomt | Q21: 8 | S21: 3 | AJ21: Saksarkiv 1977-1991
A22: 4. hyllemeter | B22: 8 | J22: 6 | Q22: 8 | AJ22: Saksarkiv 1977-1991
A23: 5. hyllemeter | B23: 7 | J23: 8 | Q23: 8 | AJ23: Saksarkiv 1977-1991
A24: 6. hyllemeter | B24: 8 | J24: 8 | Q24: 8 | AJ24: Saksarkiv 1977-1991
A25: Sum | B25: =SUM(B19:B24) -> 48 | E25: =SUM(E19:E24) -> 2 | F25: =SUM(F19:F24) -> 0 | G25: 0 | J25: =SUM(J19:J24) -> 27 | L25: =SUM(L19:L24) -> 0 | N25: =SUM(N19:N24) -> 0 | O25: 0 | Q25: 48 | S25: =SUM(S19:S24) -> 3 | X25: =SUM(X19:X24) -> 0 | AI25: 2 kopipapiresker med personkort styrer, råd og utvalg | AK25: =+B25+J25+Q25 -> 123 | AL25: =+E25+S25 -> 5 | AM25: 0 | AP25: 2
A26: Reol 2 - høyre side
A27: 1. hyllemeter | B27: 3 | E27: 8 | F27: 9 | J27: 8 | Q27: 9 | AJ27: Saksarkiv 1977-1991
A28: 2. hyllemeter | B28: 8 | J28: 9 | Q28: 5 | S28: 3 | X28: 5 | Y28: 1 | AJ28: Saksarkiv 1977-1991
A29: 3. hyllemeter | B29: 8 | J29: 8 | Q29: 8 | AJ29: Saksarkiv 1977-1991
A30: 4. hyllemeter | B30: 8 | J30: 4 | L30: 1 | Q30: 3 | S30: 5 | Y30: 8 | AJ30: Saksarkiv 1977-1991
A31: 5. hyllemeter | B31: 7 | J31: 8 | Q31: 6 | AJ31: Saksarkiv 1977-1991
A32: 6. hyllemeter | B32: 8 | J32: 7 | Q32: Tomt | AJ32: Saksarkiv 1977-1991
A33: Sum | B33: =SUM(B27:B32) -> 42 | E33: =SUM(E27:E32) -> 8 | F33: 9 | G33: 0 | J33: =SUM(J27:J32) -> 44 | L33: =SUM(L27:L32) -> 1 | N33: =SUM(N27:N32) -> 0 | Q33: 31 | S33: =SUM(S27:S32) -> 8 | X33: =SUM(X27:X32) -> 5 | Y33: =SUM(Y27:Y32) -> 9 | AK33: =+B33+J33+Q33 -> 117 | AL33: =+E33+L33+S33 -> 17 | AM33: =+F33+N33+X33 -> 14 | AN33: =+Y33 -> 9
AJ34: Sum Saksarkiv 1977-1991 | AK34: =SUM(AK2:AK33) -> 418 | AL34: =SUM(AL2:AL33) -> 22 | AM34: 14 | AN34: 9 | AP34: 16 | AQ34: =+AK34 -> 418
A35: Reol 3 - venstre side
A36: 1. hyllemeter | B36: 8 | J36: 8 | Q36: 8 | AJ36: Saksarkiv 1992-1995
A37: 2. hyllemeter | B37: 8 | J37: 8 | Q37: 8 | AJ37: Saksarkiv 1992-1995
A38: 3. hyllemeter | B38: 8 | J38: 8 | Q38: 8 | AJ38: Saksarkiv 1992-1995
A39: 4. hyllemeter | B39: 8 | J39: 8 | Q39: 8 | AJ39: Saksarkiv 1992-1995
A40: 5. hyllemeter | B40: 8 | J40: 8 | Q40: 8 | AJ40: Saksarkiv 1992-1995
A41: 6. hyllemeter | B41: 8 | J41: 8 | AJ41: Saksarkiv 1992-1995
A42: Sum | B42: =SUM(B36:B41) -> 48 | E42: =SUM(E36:E41) -> 0 | F42: 0 | G42: 0 | J42: 48 | L42: 0 | N42: 0 | O42: 0 | Q42: 40 | S42: 0 | X42: 0 | Y42: 0 | AK42: =+B42+J42+Q42 -> 136 | AL42: 0 | AM42: 0 | AN42: 0 | AP42: 0
AJ43: Sum Saksarkiv 1992-1995 | AK43: =+AK42 -> 136 | AL43: 0 | AM43: 0 | AN43: 0 | AP43: 0 | AQ43: =+AK43 -> 136
A44: Reol 3 - høyre side
A45: Bokser fra reol 3 vs | B45: 8 | AJ45: Saksarkiv 1996-1999
A46: 1. hyllemeter | B46: 8 | J46: 7 | Q46: 8 | AJ46: Saksarkiv 1996-1999
A47: 2. hyllemeter | B47: 8 | J47: 7 | Q47: 8 | AJ47: Saksarkiv 1996-1999
A48: 3. hyllemeter | B48: 8 | J48: 8 | Q48: 8 | S48: 1 | AJ48: Saksarkiv 1996-1999
A49: 4. hyllemeter | B49: 8 | J49: 9 | Q49: 9 | AJ49: Saksarkiv 1996-1999
A50: 5. hyllemeter | B50: 8 | J50: 9 | Q50: 8 | AJ50: Saksarkiv 1996-1999
A51: 6. hyllemeter | B51: 9 | J51: 9 | Q51: 9 | AJ51: Saksarkiv 1996-1999
A52: Bokser fra reol 4 hs | B52: 2 | AJ52: Saksarkiv 1996-1999
A53: Sum | B53: =SUM(B45:B52) -> 59 | J53: =SUM(J46:J52) -> 49 | Q53: =SUM(Q46:Q52) -> 50 | S53: =SUM(S48:S52) -> 1 | AK53: =+B53+J53+Q53 -> 158 | AL53: 1 | AM53: 0 | AN53: 0 | AP53: 0
AJ54: Sum Saksarkiv 1996-1999 | AK54: =+AK53 -> 158 | AL54: =+AL53 -> 1 | AM54: =+AM53 -> 0 | AN54: =+AN53 -> 0 | AP54: =+AP53 -> 0 | AR54: =+AK54 -> 158
A55: Reol 4 - venstre side
A56: 1. hyllemeter | B56: 7 | J56: 8 | Q56: 5 | S56: 7 | AJ56: Saksarkiv 2000-2004
A57: 2. hyllemeter | B57: 8 | E57: 1 | J57: 7 | Q57: 8 | AJ57: Saksarkiv 2000-2004
A58: 3. hyllemeter | B58: 9 | J58: 8 | Q58: 8 | AJ58: Saksarkiv 2000-2004
A59: 4. hyllemeter | B59: 8 | J59: 8 | Q59: 8 | AJ59: Saksarkiv 2000-2004
A60: 5. hyllemeter | B60: 6 | J60: 8 | Q60: 8 | AJ60: Saksarkiv 2000-2004
A61: 6. hyllemeter | B61: 8 | J61: 8 | Q61: 8 | AJ61: Saksarkiv 2000-2004
A62: Bokser fra reol 4 hs | B62: 43 | AJ62: Saksarkiv 2000-2004
A63: Sum | B63: =SUM(B56:B62) -> 89 | E63: =SUM(E57:E61) -> 1 | F63: 0 | G63: 0 | J63: =SUM(J56:J61) -> 47 | L63: 0 | N63: 0 | O63: 0 | Q63: =SUM(Q56:Q61) -> 45 | S63: =SUM(S56:S61) -> 7 | X63: 0 | Y63: 0 | AK63: =+B63+J63+Q63 -> 181 | AL63: =+E63+L63+S63 -> 8 | AM63: 0 | AN63: 0 | AP63: 0
AJ64: Sum Saksarkiv 2000-2004 | AK64: =+AK63 -> 181 | AL64: =+AL63 -> 8 | AM64: 0 | AN64: 0 | AP64: 0 | AT64: =+AK64 -> 181
AJ65: Sum Saksarkiv Rådmannskontoret | AK65: =+AK9+AK17+AK25+AK33+AK43+AK54+AK64 -> 893 | AL65: =+AL9+AL17+AL25+AL33+AL43+AL54+AL64 -> 31 | AM65: =+AM9+AM17+AM25+AM33+AM43+AM54+AM64 -> 14 | AN65: 9 | AP65: 16
A66: Reol 4 - høyre side
A67: 1. hyllemeter | B67: 1 | E67: 2 | L67: 12 | O67: 3 | Q67: 6 | AJ67: Husbanken bostøtte/etableringstilsk | AW67: Kasseres?
A68: 2. hyllemeter | J68: Tomt | L68: Tomt | N68: Tomt | O68: Tomt | Q68: 10 | AJ68: Husbanken bostøtte/etableringstilsk | AW68: Kasseres?
A69: 3. hyllemeter | J69: 3 | Q69: 9 | AJ69: Husbanken bostøtte/etableringstilsk | AW69: Kasseres?
A70: 4. hyllemeter | J70: 5 | Q70: 4 | AJ70: Husbanken bostøtte/etableringstilsk | AW70: Kasseres?
A71: 5. hyllemeter | J71: 8 | Q71: 8 | AJ71: Husbanken bostøtte/etableringstilsk | AW71: Kasseres?
A72: 6. hyllemeter | J72: 7 | Q72: 5 | AJ72: Husbanken bostøtte/etableringstilsk | AW72: Kasseres?
A73: Sum | B73: =SUM(B67:B72) -> 1 | E73: =SUM(E67:E72) -> 2 | F73: =SUM(F67:F72) -> 0 | G73: 0 | J73: 23 | L73: 12 | N73: 0 | O73: 3 | Q73: 42 | S73: 0 | X73: 0 | Y73: 0 | AK73: =+B73+J73+Q73 -> 66 | AL73: =+E73+L73+S73 -> 14 | AM73: 0 | AN73: 0 | AP73: 0 | AV73: =+AK73 -> 66
A74: Reol 5 - venstre side | AI74: 5 kopipapiresker med journalkort teknisk
A75: 1. hyllemeter | B75: 8 | J75: 7 | S75: 11 | AJ75: Teknisk før 1992
A76: 2. hyllemeter | B76: 8 | J76: 7 | Q76: 2 | S76: 3 | AJ76: Teknisk før 1992
A77: 3. hyllemeter | B77: 8 | J77: 8 | Q77: 1 | S77: 14 | AJ77: Teknisk før 1992
A78: 4. hyllemeter | B78: 8 | J78: 8 | Q78: 9 | AJ78: Teknisk før 1992
A79: 5. hyllemeter | B79: 8 | J79: 3 | Q79: Tomt | AJ79: Teknisk før 1992
A80: 6. hyllemeter | B80: 1 | J80: Tomt | Q80: 1 | AJ80: Teknisk før 1992
A81: Sum | B81: =SUM(B75:B80) -> 41 | E81: =SUM(E75:E80) -> 0 | F81: 0 | G81: 0 | J81: 33 | L81: 0 | N81: 0 | O81: 0 | Q81: 13 | S81: 28 | X81: 0 | Y81: 0 | AI81: 5 kopipapiresker med journalkort teknisk | AK81: =+B81+J81+Q81 -> 87 | AL81: =+S81 -> 28 | AM81: 0 | AN81: 0 | AP81: 5
A82: Reol 5 - høyre side
A83: 1. hyllemeter | E83: 10 | H83: 2 | J83: 7 | Q83: 6 | S83: 3 | AJ83: Teknisk før 1992
A84: 2. hyllemeter | B84: 8 | J84: 8 | Q84: 7 | AJ84: Teknisk før 1992
A85: 3. hyllemeter | B85: 8 | J85: 8 | Q85: 8 | AJ85: Teknisk før 1992
A86: 4. hyllemeter | B86: 8 | J86: 8 | Q86: 5 | AJ86: Teknisk før 1992
A87: 5. hyllemeter | B87: 6 | J87: 6 | Q87: 8 | X87: 1 | AJ87: Teknisk før 1992
A88: 6. hyllemeter | B88: 7 | J88: 7 | Q88: 8 | AJ88: Teknisk før 1992
A89: Sum | B89: =SUM(B84:B88) -> 37 | E89: =SUM(E83:E88) -> 10 | F89: =SUM(F83:F88) -> 0 | G89: 0 | H89: 2 | J89: 44 | L89: 0 | N89: 0 | O89: 0 | Q89: 42 | S89: 3 | X89: 1 | Y89: 0 | AI89: 0 | AK89: =+B89+J89+Q89 -> 123 | AL89: =+E89+L89+S89 -> 13 | AM89: =+F89+N89+X89 -> 1 | AN89: 0 | AO89: =+H89 -> 2 | AP89: 0
A90: Reol 6 - venstre side
A91: 1. hyllemeter | E91: 13 | F91: 2 | L91: 14 | Q91: 8 | AJ91: Teknisk før 1992
A92: 2. hyllemeter | B92: 7 | E92: 1 | J92: 7 | Q92: 9 | AJ92: Teknisk før 1992
A93: 3. hyllemeter | B93: 8 | F93: 2 | J93: 5 | L93: 2 | Q93: 7 | S93: 2 | AJ93: Teknisk før 1992
A94: 4. hyllemeter | B94: 8 | J94: 6 | Q94: 8 | AJ94: Teknisk før 1992
A95: 5. hyllemeter | B95: 5 | E95: 1 | J95: 9 | Q95: 8 | AJ95: Teknisk før 1992
A96: 6. hyllemeter | B96: 8 | J96: 8 | Q96: 8 | S96: 1 | AJ96: Teknisk før 1992
A97: Sum | B97: =SUM(B92:B96) -> 36 | E97: =SUM(E91:E96) -> 15 | F97: =SUM(F91:F96) -> 4 | G97: 0 | H97: 0 | J97: 35 | L97: =SUM(L91:L96) -> 16 | N97: =SUM(N91:N96) -> 0 | O97: =SUM(O91:O96) -> 0 | Q97: =SUM(Q91:Q96) -> 48 | S97: =SUM(S91:S96) -> 3 | X97: =SUM(X91:X96) -> 0 | Y97: =SUM(Y91:Y96) -> 0 | AI97: 0 | AK97: =+B97+J97+Q97 -> 119 | AL97: =+E97+L97+S97 -> 34 | AM97: =+F97+N97+X97 -> 4 | AN97: 0 | AO97: 0 | AP97: 0
A98: Sum Teknisk før 1992 | AJ98: Sum Teknisk før 1992 | AK98: =+AK81+AK100+AK89+AK97 -> 329 | AQ98: =+AK98 -> 329
A99: Reol 6 - høyre side | B99: 92-95 | E99: 92-95 | F99: 92-95 | G99: 92-95 | H99: 92-95 | J99: 92-95 | K99: 96-99 | L99: 92-95 | M99: 96-99 | N99: 92-95 | O99: 92-95 | Q99: 96-99 | X99: 96-99
A100: 1. hyllemeter | B100: 11 | J100: 11 | Q100: 14 | AJ100: Teknisk 1992-1995 og 1996-1999
A101: 2. hyllemeter | B101: 11 | J101: 12 | Q101: 12 | AJ101: Teknisk 1992-1995 og 1996-1999
A102: 3. hyllemeter | B102: 9 | J102: 7 | K102: 1 | Q102: 11 | AJ102: Teknisk 1992-1995 og 1996-1999
A103: 4. hyllemeter | B103: 10 | K103: 12 | Q103: 11 | X103: 1 | AJ103: Teknisk 1992-1995 og 1996-1999
A104: 5. hyllemeter | B104: 11 | K104: 10 | M104: 2 | Q104: 10 | AJ104: Teknisk 1992-1995 og 1996-1999
A105: 6. hyllemeter | B105: 11 | K105: 11 | Q105: 10 | AJ105: Teknisk 1992-1995 og 1996-1999
A106: Sum 1992-1995 | B106: =SUM(B100:B105) -> 63 | E106: =SUM(E100:E105) -> 0 | F106: 0 | G106: 0 | H106: 0 | J106: 30 | L106: =SUM(L100:L105) -> 0 | N106: =SUM(N100:N105) -> 0 | O106: =SUM(O100:O105) -> 0 | S106: =SUM(S100:S105) -> 0 | Y106: =SUM(Y100:Y105) -> 0 | AI106: 0 | AJ106: Sum 1992-1995 | AK106: =+B106+J106 -> 93 | AL106: 0 | AM106: 0 | AN106: 0 | AO106: 0 | AP106: 0 | AQ106: =+AK106 -> 93
A107: Sum 1996-1999 | B107: 0 | E107: 0 | F107: 0 | G107: 0 | H107: 0 | J107: 0 | K107: =SUM(K100:K105) -> 34 | L107: 0 | M107: =SUM(M100:M105) -> 2 | Q107: =SUM(Q100:Q106) -> 68 | X107: =SUM(X100:X106) -> 1 | AJ107: Sum 1996-1999 | AK107: =+K107+Q107 -> 102 | AL107: =+M107 -> 2 | AM107: 1 | AN107: 0 | AO107: 0 | AP107: 0 | AR107: =+AK107 -> 102
A108: Reol 7 - venstre side | B108: 00-04 | J108: Reguleringsplaner | Q108: Budsjett/regnskap | S108: Budsjett/regnskap
A109: 1. hyllemeter | B109: 16 | J109: Tomt | K109: Tomt | L109: Tomt | M109: Tomt | N109: Tomt | O109: Tomt | Q109: 2 | S109: 3
A110: 2. hyllemeter | B110: 12 | J110: Tomt | K110: Tomt | L110: Tomt | M110: Tomt | N110: Tomt | O110: Tomt | Q110: 6 | S110: 3
A111: 3. hyllemeter | B111: 11 | J111: 6 | Q111: 5
A112: 4. hyllemeter | B112: 8 | J112: 1 | Q112: Tomt | R112: Tomt
A113: 5. hyllemeter | B113: 8 | J113: 3 | Q113: Tomt | R113: Tomt
A114: 6. hyllemeter | B114: 4 | J114: Tomt | K114: Tomt | L114: Tomt | M114: Tomt | N114: Tomt | O114: Tomt | Q114: Tomt | R114: Tomt | S114: Tomt | T114: Tomt | U114: Tomt | V114: Tomt | W114: Tomt | X114: Tomt | Y114: Tomt
A115: Sum 2000-2004 | B115: =SUM(B109:B114) -> 59 | AJ115: Sum 2000-2004 | AK115: =+B115 -> 59 | AT115: =+AK115 -> 59
A116: Sum Reguleringsplaner | J116: =SUM(J111:J115) -> 10 | AJ116: Sum Reguleringsplaner | AK116: =+J116 -> 10 | AV116: =+AK116 -> 10
A117: Sum Budsjett/regnskap | Q117: =SUM(Q109:Q111) -> 13 | S117: =SUM(S109:S111) -> 6 | AJ117: Sum Budsjett/regnskap | AK117: =+Q117 -> 13 | AL117: =+S117 -> 6 | AV117: =+AK117 -> 13
A118: Reol 7 - høyre side | E118: Utsendte skriv | J118: Friluftsnemnda | L118: Utsendte skriv | M118: Avisutklipp | Q118: Gravemelding | R118: Solgte festetomter | S118: Gravemelding | T118: Egenerklæring | U118: Kjøp eiendom | V118: Solgte festetomter | W118: Friluftsnemnda
A119: 1. hyllemeter | E119: 11 | L119: 12 | Q119: 2 | S119: 3
A120: 2. hyllemeter | E120: 11 | M120: 14 | T120: 8
A121: 3. hyllemeter | E121: 12 | J121: 8 | U121: 12
A122: 4. hyllemeter | E122: 12 | J122: 8 | R122: 4 | V122: 2
A123: 5. hyllemeter | E123: 12 | J123: 7 | W123: 10
A124: 6. hyllemeter | B124: Tomt | E124: Tomt | F124: Tomt | G124: Tomt | H124: Tomt | J124: Tomt | K124: Tomt | L124: Tomt | M124: Tomt | N124: Tomt | O124: Tomt | Q124: Tomt | R124: Tomt | S124: Tomt | T124: Tomt | U124: Tomt | V124: Tomt | W124: Tomt | X124: Tomt | Y124: Tomt
A125: Sum Utsendte skriv | E125: =SUM(E119:E124) -> 58 | L125: =SUM(L119:L124) -> 12 | AJ125: Sum Utsendte skriv | AL125: =+E125+L125 -> 70
A126: Sum Friluftsnemnda | J126: =SUM(J121:J125) -> 23 | W126: =SUM(W119:W123) -> 10 | AJ126: Sum Friluftsnemnda | AK126: =+J126 -> 23 | AL126: 10 | AV126: =+AK126 -> 23
A127: Sum Avisutklipp | M127: =SUM(M119:M123) -> 14 | AJ127: Sum Avisutklipp | AL127: =+M127 -> 14
A128: Sum Gravemelding | Q128: =SUM(Q119:Q123) -> 2 | S128: =SUM(S119:S127) -> 3 | AJ128: Sum Gravemelding | AK128: 2 | AL128: 3 | AV128: =+AK128 -> 2
A129: Sum Solgte festetomter | R129: =SUM(R122:R128) -> 4 | V129: =SUM(V122:V128) -> 2 | AJ129: Sum Solgte festetomter | AK129: 4 | AL129: 2 | AV129: =+AK129 -> 4
A130: Sum Egenerklæring | T130: =SUM(T120:T129) -> 8 | AJ130: Sum Egenerklæring | AL130: 8
A131: Sum Kjøp eiendom | U131: =SUM(U121:U130) -> 12 | AJ131: Sum Kjøp eiendom | AL131: 12
A132: Reol 8 - venstre side | AI132: 21 arkivbokser
A133: 1. hyllemeter | B133: 7 | E133: 1 | L133: 13 | N133: 4 | S133: 15
A134: 2. hyllemeter | B134: 8 | J134: 8 | Q134: 8
A135: 3. hyllemeter | B135: 8 | J135: 7 | Q135: 1 | S135: 12 | X135: 1 | Y135: 1
A136: 4. hyllemeter | B136: 8 | J136: 8 | Q136: 8 | X136: 1
A137: 5. hyllemeter | B137: 7 | J137: 7 | Q137: 3 | S137: 8
A138: 6. hyllemeter | B138: 8 | F138: 1 | J138: 8 | Q138: Tomt | R138: Tomt | S138: Tomt | T138: Tomt | U138: Tomt | V138: Tomt | W138: Tomt | X138: Tomt | Y138: Tomt
A139: Sum Kommunale bygg | B139: =SUM(B133:B138) -> 46 | E139: =SUM(E133:E138) -> 1 | F139: 1 | G139: 0 | H139: 0 | J139: 38 | K139: 0 | L139: 13 | M139: 0 | N139: 4 | O139: 0 | Q139: 20 | R139: 0 | S139: 35 | T139: 0 | U139: 0 | V139: 0 | W139: 0 | X139: 2 | Y139: 1 | AI139: 21 | AJ139: Sum Kommunale bygg | AK139: =+B139+J139+Q139+AI139 -> 125 | AL139: =+E139+L139+S139 -> 49 | AM139: =+F139+N139+X139 -> 7 | AN139: =+Y139 -> 1 | AO139: 0 | AP139: 0 | AV139: =+AK139 -> 125
A140: Reol 8 - høyre side | AI140: 4 arkivbokser avskjedssak
A141: 1. hyllemeter | B141: 9 | J141: 9
A142: 2. hyllemeter | B142: 9 | J142: 9
A143: 3. hyllemeter | B143: 9 | J143: 2
A144: 4. hyllemeter | B144: 9 | J144: Tomt | K144: Tomt | L144: Tomt | M144: Tomt | N144: Tomt | O144: Tomt | Q144: Tomt | R144: Tomt | S144: Tomt | T144: Tomt | U144: Tomt | V144: Tomt | W144: Tomt | X144: Tomt | Y144: Tomt
A145: 5. hyllemeter | B145: 9 | J145: Tomt | K145: Tomt | L145: Tomt | M145: Tomt | N145: Tomt | O145: Tomt | Q145: Tomt | R145: Tomt | S145: Tomt | T145: Tomt | U145: Tomt | V145: Tomt | W145: Tomt | X145: Tomt | Y145: Tomt
A146: 6. hyllemeter | B146: 9 | J146: Tomt | K146: Tomt | L146: Tomt | M146: Tomt | N146: Tomt | O146: Tomt | Q146: Tomt | R146: Tomt | S146: Tomt | T146: Tomt | U146: Tomt | V146: Tomt | W146: Tomt | X146: Tomt | Y146: Tomt
A147: Sum Klientarkiv NAV | B147: =SUM(B141:B146) -> 54 | J147: =SUM(J141:J146) -> 20 | AJ147: Sum Klientarkiv NAV til deponering | AK147: =+B147+J147 -> 74 | AQ147: =+AK147 -> 74
A148: Avskjedssak | AI148: 4 | AJ148: Avskjedssak | AK148: 4 | AV148: =+AK148 -> 4
A149: Reol 9 - venstre side | B149: MORS | C149: Verdal legesenter | Z149: Sosialkontoret
A150: 1. hyllemeter | B150: 6 | Z150: 9
A151: 2. hyllemeter | B151: 7 | Z151: 9
A152: 3. hyllemeter | B152: 5 | Z152: 2
A153: 4. hyllemeter | B153: 4
A154: 5. hyllemeter | C154: 5
A155: 6. hyllemeter
A156: Sum MORS | B156: =SUM(B150:B155) -> 22 | AJ156: Sum MORS | AK156: =+B156 -> 22 | AV156: =+AK156 -> 22
A157: Sum Verdal legesenter | C157: =SUM(C154:C156) -> 5 | AJ157: Sum Verdal legesenter | AK157: =+C157 -> 5 | AV157: =+AK157 -> 5
A158: Sum Sosialkontoret | Z158: =SUM(Z150:Z157) -> 20 | AJ158: Sum Sosialkontoret | AK158: =+Z158 -> 20 | AQ158: =+AK158 -> 20
A159: Reol 9 - høyre side
A160: 1. hyllemeter | G160: 13 | O160: 18 | Y160: 28 | AF160: 33
A161: 2. hyllemeter | G161: 26 | O161: 16 | Y161: 31 | AD161: 1 | AF161: 29
A162: 3. hyllemeter | G162: 20 | O162: 24 | Y162: 28 | AD162: 3 | AF162: 14
A163: 4. hyllemeter | G163: 39 | O163: 22 | Y163: 34 | AD163: 11 | AF163: 5
A164: 5. hyllemeter | G164: 12 | O164: 38 | Y164: 37 | AD164: 12
A165: Sum Politiske utvalg | B165: =SUM(B160:B164) -> 0 | C165: 0 | E165: 0 | F165: 0 | G165: =SUM(G160:G164) -> 110 | H165: =SUM(H160:H164) -> 0 | J165: 0 | K165: 0 | L165: 0 | M165: 0 | N165: 0 | O165: 118 | Q165: 0 | R165: 0 | S165: 0 | T165: 0 | U165: 0 | V165: 0 | W165: 0 | X165: 0 | Y165: 158 | Z165: 0 | AD165: 27 | AE165: 0 | AF165: 81 | AG165: 0 | AJ165: Sum Politiske utvalg fra 1976 | AK165: 0 | AL165: =+AD165 -> 27 | AN165: =+G165+O165+Y165+AF165 -> 467 | AW165: ?
A166: Reol 10 - venstre side
A167: 1. hyllemeter | G167: 33 | O167: 31 | Y167: 9 | AE167: 1 | AF167: 11
A168: 2. hyllemeter | G168: 37 | O168: 32 | Q168: Tomt | R168: Tomt | S168: Tomt | T168: Tomt | U168: Tomt | V168: Tomt | W168: Tomt | X168: Tomt | Y168: Tomt | AD168: 14
A169: 3. hyllemeter | G169: 26 | O169: 28 | Q169: Tomt | R169: Tomt | S169: Tomt | T169: Tomt | U169: Tomt | V169: Tomt | W169: Tomt | X169: Tomt | Y169: Tomt | AD169: 6 | AE169: 4 | AF169: 1
A170: 4. hyllemeter | G170: 37 | O170: 25 | Q170: Tomt | R170: Tomt | S170: Tomt | T170: Tomt | U170: Tomt | V170: Tomt | W170: Tomt | X170: Tomt | Y170: Tomt | AD170: 6 | AF170: 3
A171: 5. hyllemeter | E171: 5 | G171: 13 | O171: 21 | Q171: Tomt | R171: Tomt | S171: Tomt | T171: Tomt | U171: Tomt | V171: Tomt | W171: Tomt | X171: Tomt | Y171: Tomt | AD171: 2
A172: Sum Politiske utvalg | B172: =SUM(B167:B171) -> 0 | C172: 0 | E172: 5 | F172: 0 | G172: =SUM(G167:G171) -> 146 | H172: =SUM(H167:H171) -> 0 | J172: 0 | K172: 0 | L172: 0 | M172: 0 | N172: 0 | O172: 137 | Q172: 0 | R172: 0 | S172: 0 | T172: 0 | U172: 0 | V172: 0 | W172: 0 | X172: 0 | Y172: 9 | Z172: 0 | AD172: 28 | AE172: 5 | AF172: 15 | AG172: 0 | AJ172: Sum Politiske utvalg fra 1976 | AK172: 0 | AL172: =+E172+AD172 -> 33 | AM172: =+AE172 -> 5 | AN172: =+G172+O172+Y172+AF172 -> 307 | AO172: 0 | AP172: 0
A173: Reol 10 - høyre side
A174: 1. hyllemeter | B174: 8 | J174: 8 | Q174: 7 | Z174: 8
A175: 2. hyllemeter | B175: 7 | J175: 8 | Q175: 9 | Z175: 6
A176: 3. hyllemeter | B176: 7 | J176: 8 | Q176: 7 | Z176: 7
A177: 4. hyllemeter | B177: 7 | J177: 8 | Q177: 8 | Z177: 8
A178: 5. hyllemeter | B178: 7 | J178: 8 | Q178: 8 | Z178: 6
A179: 6. hyllemeter | B179: 8 | J179: 8 | Q179: 8 | Z179: 8
A180: Sum Større eiendommer | B180: =SUM(B174:B179) -> 44 | C180: =SUM(C174:C179) -> 0 | E180: 0 | F180: 0 | G180: 0 | H180: 0 | J180: 48 | K180: 0 | L180: 0 | M180: 0 | N180: 0 | O180: 0 | Q180: 47 | R180: 0 | S180: 0 | T180: 0 | U180: 0 | V180: 0 | W180: 0 | X180: 0 | Y180: 0 | Z180: 43 | AD180: 0 | AE180: 0 | AF180: 0 | AG180: 0 | AI180: 0 | AJ180: Sum Større eiendommer byggesak | AK180: =+B180+J180+Q180+Z180 -> 182 | AV180: =+AK180 -> 182
A181: Reol 11 - venstre side
A182: 1. hyllemeter | B182: 8 | J182: 8 | Q182: 8 | Z182: 7
A183: 2. hyllemeter | B183: 7 | J183: 8 | Q183: 8 | Z183: 8
A184: 3. hyllemeter | B184: Tomt | C184: Tomt | E184: Tomt | F184: Tomt | G184: Tomt | H184: Tomt | J184: 7 | Q184: Tomt | R184: Tomt | S184: Tomt | T184: Tomt | U184: Tomt | V184: Tomt | W184: Tomt | X184: Tomt | Y184: Tomt | Z184: 8
A185: 4. hyllemeter | B185: 7 | J185: 8 | Q185: 8 | Z185: 9
A186: 5. hyllemeter | B186: 8 | J186: 8 | Q186: 8 | Z186: 8
A187: 6. hyllemeter | B187: 2 | E187: 1 | F187: 4 | J187: 7 | Q187: 8 | Z187: 7
A188: Sum Skannet byggesak | B188: =SUM(B182:B187) -> 32 | C188: =SUM(C182:C187) -> 0 | E188: 1 | F188: 4 | G188: 0 | H188: 0 | J188: 46 | K188: 0 | L188: 0 | M188: 0 | N188: 0 | O188: 0 | Q188: 40 | R188: 0 | S188: 0 | T188: 0 | U188: 0 | V188: 0 | W188: 0 | X188: 0 | Y188: 0 | Z188: =SUM(Z182:Z187) -> 47 | AD188: =SUM(AD182:AD187) -> 0 | AE188: =SUM(AE182:AE187) -> 0 | AF188: =SUM(AF182:AF187) -> 0 | AG188: =SUM(AG182:AG187) -> 0 | AI188: =SUM(AI182:AI187) -> 0 | AJ188: Sum Skannet byggesak | AK188: =+B188+J188+Q188+Z188 -> 165 | AL188: =+E188 -> 1 | AM188: =+F188 -> 4 | AV188: =+AK188 -> 165
A189: Reol 11 - høyre side
A190: 1. hyllemeter | B190: 8 | J190: 8 | Q190: 8 | Z190: 6 | AE190: 3
A191: 2. hyllemeter | B191: 8 | J191: 8 | Q191: 8 | Z191: 8
A192: 3. hyllemeter | B192: 8 | J192: 8 | Q192: 8 | Z192: 8
A193: 4. hyllemeter | B193: 8 | J193: 8 | Q193: 8 | Z193: 8
A194: 5. hyllemeter | B194: 8 | J194: 8 | Q194: 8 | Z194: 8
A195: 6. hyllemeter | B195: 8 | J195: 8 | Q195: 8 | Z195: 3
A196: Sum Skannet byggesak | B196: =SUM(B190:B195) -> 48 | C196: =SUM(C190:C195) -> 0 | E196: 0 | F196: 0 | G196: 0 | H196: 0 | J196: 48 | K196: 0 | L196: 0 | M196: 0 | N196: 0 | O196: 0 | Q196: 48 | R196: 0 | S196: 0 | T196: 0 | U196: 0 | V196: 0 | W196: 0 | X196: 0 | Y196: 0 | Z196: 41 | AD196: 0 | AE196: 3 | AF196: 0 | AG196: 0 | AI196: 0 | AJ196: Sum Skannet byggesak | AK196: =+B196+J196+Q196+Z196 -> 185 | AL196: 0 | AM196: 3 | AN196: 0 | AO196: 0 | AP196: 0 | AV196: =+AK196 -> 185
A197: Reol 12 - venstre side
A198: 1. hyllemeter | B198: 7 | J198: 7 | Q198: 6 | Z198: 8
A199: 2. hyllemeter | B199: 7 | J199: 7 | Q199: 6 | Z199: 8
A200: 3. hyllemeter | B200: 6 | J200: 7 | Q200: 6 | Z200: 7
... 135 more rows
